bitfinex-derivatives/quotes_BTCF0:USTF0_20210109
["timestamp","ask_amount","ask_price","bid_price","bid_amount"]
[1610235453637,0.03,40316.0,40313.0,0.00021896]
[1610235453840,0.03,40316.0,40311.0,4.0726]
[1610235453841,0.03030491,40316.0,40315.0,0.00021899]
[1610235454036,0.03,40316.0,40311.0,4.0726]
[1610235454437,0.13632608,40312.0,40311.0,4.0726]
[1610235454638,0.25528608,40312.0,40311.0,4.0726]
[1610235456037,0.69648608,40312.0,40301.0,3.905]
[1610235456439,0.13632608,40302.0,40301.0,3.905]
[1610235456636,0.21653608,40302.0,40301.0,3.905]
[1610235457037,0.21653608,40302.0,40301.0,3.90521903]
[1610235457236,0.21653608,40302.0,40301.0,3.905]
[1610235457439,0.21653608,40302.0,40301.0,3.90521902]
[1610235458337,0.21653608,40302.0,40301.0,4.0415451]
[1610235458538,0.08021,40302.0,40301.0,4.0415451]
[1610235460942,0.13632608,40309.0,40301.0,4.0415451]
[1610235461144,0.56016,40312.0,40301.0,4.0415451]
[1610235461546,0.56016,40312.0,40302.0,0.00021896]
[1610235462344,0.56016,40312.0,40311.0,0.13632608]
[1610235462847,0.56016,40312.0,40311.0,0.13654504]
[1610235465350,0.11896,40312.0,40311.0,0.13654504]
[1610235465750,0.13632608,40314.0,40311.0,0.13654504]
[1610235466351,0.13632608,40314.0,40312.0,0.00021896]
[1610235468855,0.13632608,40314.0,40311.0,0.13632608]
[1610235469056,0.21622608,40314.0,40311.0,0.13632608]
[1610235469455,0.21622608,40314.0,40312.0,0.00021896]
[1610235475460,1.0,40313.0,40312.0,0.00021896]
[1610235475861,1.0,40313.0,40311.0,0.13632608]
[1610235477464,1.0,40312.0,40311.0,0.13632608]
[1610235477864,1.0,40312.0,40311.0,0.13654507]
[1610235478465,1.00030492,40312.0,40311.0,0.13654507]
[1610235478866,1.00030492,40312.0,40311.0,0.00021899]
[1610235479268,1.00030492,40312.0,40290.0,0.01047743]
[1610235479467,1.00030492,40312.0,40311.0,0.00021899]
[1610235479670,1.0,40312.0,40291.0,0.00021899]
[1610235480068,1.0,40312.0,40291.0,0.01047697]
[1610235480469,1.0,40312.0,40311.0,0.13632608]
[1610235480869,1.0,40312.0,40311.0,0.13654504]
[1610235481468,0.0799,40314.0,40311.0,0.13654504]
[1610235481668,0.03,40316.0,40311.0,0.13654504]
[1610235481869,0.03,40316.0,40312.0,0.00021896]
[1610235493396,0.03,40316.0,40315.0,1.0]
[1610235493795,0.03,40316.0,40315.0,1.0002189]
[1610235495396,0.03,40316.0,40315.0,0.0002189]
[1610235495799,0.03,40316.0,40312.0,0.0002189]
[1610235496000,0.03,40316.0,40315.0,0.0002189]
[1610235496399,0.03,40316.0,40312.0,0.0002189]
[1610235496600,0.03,40316.0,40315.0,0.0002189]
[1610235496801,0.03,40316.0,40313.0,0.0002189]
[1610235497200,0.03,40316.0,40312.0,0.0002189]
[1610235497403,0.03,40316.0,40314.0,0.00021892]
[1610235497602,0.03,40316.0,40313.0,0.00021892]
[1610235498003,0.03,40316.0,40312.0,0.00021892]
[1610235498202,0.03,40316.0,40314.0,0.00021892]
[1610235498403,0.03,40316.0,40313.0,0.00021894]
[1610235498801,0.03,40316.0,40312.0,0.00021894]
[1610235499002,0.03,40316.0,40314.0,0.00021894]
[1610235499201,0.03,40316.0,40313.0,0.00021894]
[1610235499601,0.03,40316.0,40311.0,0.13632608]
[1610235499602,0.03,40316.0,40312.0,0.00021894]
[1610235499801,0.03,40316.0,40314.0,0.00021894]
[1610235500003,0.03,40316.0,40313.0,0.00021894]
[1610235500402,0.03,40316.0,40304.0,0.00021897]
[1610235500601,0.03,40316.0,40314.0,0.00021897]
[1610235500803,0.03,40316.0,40305.0,0.00021899]
[1610235501202,0.03,40316.0,40303.0,1.0]
[1610235501402,0.03,40316.0,40306.0,0.00021898]
[1610235501603,0.03,40316.0,40304.0,0.00021898]
[1610235501904,0.03,40316.0,40307.0,0.00021898]
[1610235502104,0.03,40316.0,40305.0,0.00021898]
[1610235502506,0.03,40316.0,40301.0,0.00021918]
[1610235502710,0.03,40316.0,40315.0,0.13632608]
[1610235503308,0.03,40316.0,40315.0,0.13654524]
[1610235512316,0.03,40316.0,40315.0,4.11654524]
[1610235513517,1.03,40316.0,40315.0,4.11654524]
[1610235514317,1.03030489,40316.0,40315.0,4.11654524]
[1610235514519,1.03030489,40316.0,40315.0,3.98021916]
[1610235514920,1.03,40316.0,40315.0,3.98021916]
[1610235517026,1.0303049,40316.0,40315.0,3.98021916]
[1610235522032,1.0303049,40316.0,40315.0,0.00021916]
[1610235522435,1.0303049,40316.0,40309.0,0.00021968]
[1610235522634,1.0303049,40316.0,40315.0,0.13632608]
[1610235522836,1.03,40316.0,40315.0,0.13632608]
[1610235523035,1.03,40316.0,40315.0,0.13654573]
[1610235523439,0.03,40316.0,40315.0,0.13654573]
[1610235525640,0.03030487,40316.0,40315.0,0.13654573]
[1610235527440,1.03030487,40316.0,40315.0,0.13654573]
[1610235528341,1.03,40316.0,40315.0,0.13654573]
[1610235529444,0.03,40316.0,40315.0,0.13654573]
[1610235534548,0.03,40316.0,40315.0,0.55924573]
[1610235537451,1.03,40316.0,40315.0,0.55924573]
[1610235539554,0.03,40316.0,40315.0,0.55924573]
[1610235544662,0.03,40316.0,40315.0,0.56974357]
[1610235547265,0.03,40316.0,40315.0,0.55924573]
[1610235549470,0.03,40316.0,40315.0,1.55924573]
[1610235550269,0.03,40316.0,40315.0,1.13654573]
[1610235551469,0.03,40316.0,40315.0,0.13654573]
[1610235561480,1.03,40316.0,40315.0,0.13654573]
[1610235565582,0.03,40316.0,40315.0,0.13654573]
[1610235571489,1.03,40316.0,40315.0,0.13654573]
[1610235571690,1.03,40316.0,40315.0,0.13632608]
[1610235571889,1.03,40316.0,40315.0,0.00021957]
[1610235572090,1.03030488,40316.0,40315.0,0.00021957]
[1610235572489,1.06030488,40316.0,40304.0,0.0002196]
[1610235572892,0.13632608,40305.0,40304.0,0.0002196]
[1610235573090,0.24388608,40305.0,40304.0,0.0002196]
[1610235573490,1.24388608,40305.0,40304.0,0.0002196]
[1610235574492,1.24419102,40305.0,40304.0,0.0002196]
[1610235574892,1.24388608,40305.0,40304.0,0.0002196]
[1610235575492,1.24388608,40305.0,40303.0,3.4011]
[1610235577493,1.0,40304.0,40303.0,3.4011]
[1610235578295,4.1454,40304.0,40287.0,0.13632608]
[1610235578696,4.1454,40304.0,40288.0,0.00021964]
[1610235578896,0.13632608,40289.0,40288.0,0.00021964]
[1610235579096,0.24953608,40289.0,40288.0,0.00021964]
[1610235581199,0.24953608,40289.0,40282.0,0.13632608]
[1610235581399,0.24953608,40289.0,40283.0,0.00021969]
[1610235581600,1.24953608,40289.0,40283.0,0.00021969]
[1610235582903,0.13632608,40284.0,40283.0,0.00021969]
[1610235588809,0.11321,40289.0,40283.0,0.00021969]
[1610235589011,0.13632608,40289.0,40288.0,0.13632608]
[1610235589513,0.13632608,40289.0,40288.0,0.13654577]
[1610235592414,3.6493,40290.0,40288.0,0.13654577]
[1610235593017,3.6493,40290.0,40289.0,0.00021966]
[1610235594520,3.9573,40299.0,40289.0,0.00021966]
[1610235595020,3.9573,40299.0,40298.0,0.13632608]
[1610235595423,3.9573,40299.0,40298.0,0.13654574]
[1610235597024,0.13632608,40303.0,40298.0,0.13654574]
[1610235597424,0.13632608,40303.0,40299.0,0.00021964]
[1610235603431,0.00030497,40302.0,40299.0,0.00021964]
[1610235603636,6.0,40300.0,40299.0,0.00021964]
[1610235603832,7.5,40300.0,40288.0,0.00021971]
[1610235604033,6.00030507,40300.0,40287.0,2.9262]
[1610235604232,0.00030511,40299.0,40289.0,0.00021978]
[1610235604632,0.03082167,40299.0,40287.0,2.9262]
[1610235605032,0.13632608,40288.0,40287.0,2.9262]
[1610235605232,0.21231608,40288.0,40287.0,2.9262]
[1610235605431,0.21262129,40288.0,40287.0,2.9262]
[1610235605631,6.21262129,40288.0,40287.0,2.9262]
[1610235606430,6.21262129,40288.0,40256.0,0.13632608]
[1610235606431,6.70462129,40288.0,40267.0,2.8546]
[1610235606832,0.00030521,40287.0,40267.0,2.8546]
[1610235607032,0.13632608,40268.0,40267.0,2.8546]
[1610235607633,1.13632608,40268.0,40267.0,2.8546]
[1610235609637,0.13632608,40268.0,40267.0,2.8546]
[1610235610437,0.13632608,40268.0,40267.0,2.85481982]
[1610235610838,0.13632608,40268.0,40267.0,2.8546]
[1610235611543,1.13632608,40268.0,40267.0,2.8546]
[1610235615446,0.13632608,40268.0,40267.0,2.8546]
[1610235615648,1.13632608,40268.0,40267.0,2.8546]
[1610235616048,1.13632608,40268.0,40263.0,0.13632608]
[1610235617650,1.0,40267.0,40263.0,0.13632608]
[1610235619451,1.0,40267.0,40246.0,1.0]
[1610235619652,1.0,40264.0,40245.0,0.09132]
[1610235619850,1.0,40264.0,40247.0,0.00021986]
[1610235620051,1.0,40264.0,40246.0,0.00021986]
[1610235620352,1.0,40264.0,40240.0,0.00021986]
[1610235620554,1.0,40264.0,40247.0,0.00021986]
[1610235620952,1.0,40264.0,40253.0,0.13632608]
[1610235621553,1.0,40266.0,40253.0,0.13632608]
[1610235622954,1.0,40266.0,40261.0,0.13632608]
[1610235623556,1.0,40266.0,40246.0,0.11978]
[1610235623557,1.0,40263.0,40246.0,0.11978]
[1610235624055,1.10812,40263.0,40247.0,0.00021731]
[1610235624556,1.10812,40263.0,40253.0,0.425]
[1610235625157,0.13632608,40254.0,40253.0,0.56132608]
[1610235625958,0.13632608,40254.0,40253.0,0.5615434]
[1610235628463,0.13632608,40254.0,40253.0,0.57114054]
[1610235629061,0.13632608,40254.0,40253.0,0.5615434]
[1610235629260,0.13632608,40254.0,40253.0,0.42521732]
[1610235629661,0.22298608,40254.0,40253.0,0.42521732]
[1610235631060,0.22298608,40254.0,40253.0,0.5615434]
[1610235632265,0.22298608,40254.0,40253.0,0.42521732]
[1610235634566,0.22298608,40254.0,40253.0,0.00021732]
[1610235635165,0.22298608,40254.0,40250.0,0.00021736]
[1610235635365,0.22298608,40254.0,40253.0,0.00021736]
[1610235635567,1.22298608,40254.0,40253.0,0.00021736]
[1610235635766,1.22298608,40254.0,40251.0,0.00021736]
[1610235635967,1.22298608,40254.0,40253.0,0.00021736]
[1610235636167,1.22298608,40254.0,40252.0,0.00021736]
[1610235636468,1.22298608,40254.0,40253.0,0.00021736]
[1610235636967,1.22298608,40254.0,40250.0,0.00021736]
[1610235637167,1.22298608,40254.0,40253.0,0.00021736]
[1610235637571,1.0,40251.0,40250.0,0.00021736]
[1610235637770,1.0,40251.0,40249.0,0.13632608]
[1610235637971,1.0,40251.0,40250.0,0.00021736]
[1610235641473,1.0,40252.0,40250.0,0.00021736]
[1610235642774,1.0,40252.0,40251.0,0.00021736]
[1610235643273,1.0,40252.0,40250.0,0.00021736]
[1610235643472,0.13632608,40254.0,40250.0,0.00021736]
[1610235643673,0.13632608,40254.0,40251.0,0.00021736]
[1610235644174,0.13632608,40254.0,40250.0,0.00021736]
[1610235644375,0.13632608,40254.0,40252.0,0.00021736]
[1610235644574,0.13632608,40254.0,40251.0,0.00021736]
[1610235644974,0.13632608,40254.0,40250.0,0.00021736]
[1610235645175,0.13632608,40254.0,40252.0,0.00021736]
[1610235645376,0.13632608,40254.0,40251.0,0.00021736]
[1610235645777,0.13632608,40254.0,40253.0,0.00021736]
[1610235645976,0.13632608,40254.0,40252.0,0.00021736]
[1610235646177,0.13632608,40254.0,40253.0,0.00021736]
[1610235646779,0.13632608,40254.0,40250.0,0.00981672]
[1610235646978,0.13632608,40254.0,40253.0,0.00021736]
[1610235647381,0.13632608,40254.0,40251.0,0.00021736]
[1610235647579,0.22533608,40254.0,40253.0,0.00021736]
[1610235647780,0.22533608,40254.0,40252.0,0.00021736]
[1610235647982,0.22533608,40254.0,40253.0,0.00021736]
[1610235648380,0.22533608,40254.0,40250.0,0.00021736]
[1610235648583,0.22533608,40254.0,40253.0,0.00021736]
[1610235648785,0.22533608,40254.0,40251.0,0.00021736]
[1610235649186,0.22533608,40254.0,40248.0,0.13632608]
[1610235649384,0.22533608,40254.0,40252.0,0.00021736]
[1610235649584,0.22533608,40254.0,40249.0,0.00021736]
[1610235649984,0.22533608,40254.0,40253.0,0.00021736]
[1610235650185,0.22533608,40254.0,40250.0,0.00021736]
[1610235650386,0.22533608,40254.0,40253.0,0.00021736]
[1610235650786,0.22533608,40254.0,40251.0,0.00021736]
[1610235650985,0.22533608,40254.0,40248.0,0.13632608]
[1610235650986,0.22533608,40254.0,40253.0,0.00021736]
[1610235651186,0.22533608,40254.0,40252.0,0.00021736]
[1610235651386,0.22533608,40254.0,40253.0,0.00021736]
[1610235651586,1.22533608,40254.0,40253.0,0.00021736]
[1610235651787,1.22533608,40254.0,40249.0,0.00021736]
[1610235651987,1.22533608,40254.0,40253.0,0.00021736]
[1610235652188,1.22533608,40254.0,40250.0,0.00021736]
[1610235652591,1.22533608,40254.0,40249.0,0.00021736]
[1610235652792,1.22533608,40254.0,40251.0,0.00021736]
[1610235652992,1.22533608,40254.0,40250.0,0.00021736]
[1610235653392,1.22533608,40254.0,40249.0,0.00021736]
[1610235653592,1.22533608,40254.0,40251.0,0.00021736]
[1610235653792,1.22533608,40254.0,40250.0,0.00021736]
[1610235654193,1.22533608,40254.0,40252.0,0.00021736]
[1610235654393,1.22533608,40254.0,40251.0,0.00021736]
[1610235654594,1.22533608,40254.0,40253.0,0.00021736]
[1610235654994,1.22533608,40254.0,40249.0,0.00981768]
[1610235655194,1.22533608,40254.0,40253.0,0.13654344]
[1610235655393,1.22533608,40254.0,40253.0,0.13632608]
[1610235655594,0.22533608,40254.0,40253.0,0.13632608]
[1610235655795,0.22533608,40254.0,40253.0,0.14614287]
[1610235656796,0.22533608,40254.0,40253.0,0.13654344]
[1610235656996,0.22533608,40254.0,40253.0,0.00021736]
[1610235657597,0.22533608,40254.0,40249.0,0.00981681]
[1610235657797,0.22533608,40254.0,40253.0,0.00021736]
[1610235657998,0.22533608,40254.0,40250.0,0.00021736]
[1610235658400,0.22533608,40254.0,40249.0,0.00981681]
[1610235658598,0.22533608,40254.0,40251.0,0.00021736]
[1610235658798,0.22533608,40254.0,40250.0,0.00021736]
[1610235659099,0.22533608,40254.0,40249.0,0.00981681]
[1610235659300,0.22533608,40254.0,40253.0,0.13632608]
[1610235659700,0.22533608,40254.0,40253.0,0.13654344]
[1610235661007,0.22533608,40254.0,40253.0,0.00021736]
[1610235661407,0.22533608,40254.0,40248.0,0.13632608]
[1610235661803,0.22533608,40254.0,40249.0,0.00981709]
[1610235663203,0.22533608,40254.0,40253.0,0.13632608]
[1610235663606,0.22533608,40254.0,40253.0,0.13654344]
[1610235663806,0.22533608,40254.0,40253.0,0.14614282]
[1610235664606,0.08901,40254.0,40253.0,0.14614282]
[1610235664806,1.0,40261.0,40253.0,0.14614282]
[1610235665105,1.0,40261.0,40254.0,0.00981703]
[1610235665306,1.13632608,40261.0,40260.0,0.13632608]
[1610235665507,0.13632608,40261.0,40260.0,0.13632608]
[1610235665707,0.13632608,40261.0,40260.0,0.13654344]
[1610235666110,0.10812,40263.0,40260.0,0.13654344]
[1610235666308,4.7842,40274.0,40260.0,0.13654344]
[1610235666506,4.7842,40274.0,40261.0,0.00021734]
[1610235666707,0.00030525,40271.0,40261.0,0.00021734]
[1610235666906,0.07310525,40271.0,40261.0,0.00021734]
[1610235667108,0.0728,40271.0,40261.0,0.00021734]
[1610235667306,0.13632608,40264.0,40261.0,0.00021734]
[1610235672111,0.13632608,40264.0,40248.0,0.00981666]
[1610235672310,0.13602288,40264.0,40262.0,0.00021734]
[1610235672511,0.13602288,40264.0,40252.0,2.9344]
[1610235672811,0.13602288,40264.0,40253.0,0.00981645]
[1610235673412,0.13602288,40264.0,40260.0,0.13632608]
[1610235673915,0.13602288,40264.0,40261.0,0.00021734]
[1610235676217,1.0,40266.0,40261.0,0.00021734]
[1610235677321,1.0,40266.0,40265.0,0.13632608]
[1610235677520,0.0728,40271.0,40265.0,1.13632608]
[1610235677722,3.0837,40279.0,40265.0,1.13632608]
[1610235677921,3.0837,40279.0,40266.0,0.00981152]
[1610235678122,0.00030515,40278.0,40266.0,0.00981152]
[1610235678322,0.07426,40278.0,40266.0,0.00981152]
[1610235679023,0.07426,40278.0,40266.0,0.00021727]
[1610235679227,0.07426,40278.0,40267.0,0.00021859]
[1610235679424,0.07426,40278.0,40277.0,0.13632608]
[1610235679926,0.07426,40278.0,40277.0,0.13654467]
[1610235681629,0.07426,40278.0,40277.0,3.79924467]
[1610235682431,1.0,40293.0,40277.0,3.79924467]
[1610235682831,1.0,40293.0,40278.0,0.00021859]
[1610235683332,1.0,40293.0,40292.0,0.13632608]
[1610235683532,1.13632608,40295.0,40292.0,0.13632608]
[1610235685636,1.0,40294.0,40292.0,0.13632608]
[1610235686033,1.08495,40294.0,40292.0,0.13632608]
[1610235687535,0.08495,40294.0,40292.0,0.13632608]
[1610235689235,0.08495,40294.0,40277.0,3.6627]
[1610235689635,1.0,40293.0,40277.0,3.6627]
[1610235689836,1.0,40293.0,40278.0,0.00021676]
[1610235690236,1.0,40293.0,40277.0,3.6627]
[1610235691235,1.0,40293.0,40273.0,3.0715]
[1610235691436,1.0,40293.0,40286.0,0.13632608]
[1610235691638,0.11495,40294.0,40286.0,0.13632608]
[1610235693437,0.11495,40294.0,40292.0,0.13632608]
[1610235694336,0.11495,40294.0,40273.0,3.0715]
[1610235694838,0.11495,40294.0,40274.0,0.00021677]
[1610235695438,0.13632608,40275.0,40274.0,0.00021677]
[1610235695637,1.13632608,40275.0,40273.0,3.20782608]
[1610235695838,1.13632608,40275.0,40274.0,0.00021678]
[1610235696038,1.13632608,40275.0,40273.0,3.20782608]
[1610235697242,1.24877608,40275.0,40273.0,3.20782608]
[1610235697639,0.24877608,40275.0,40274.0,0.00021679]
[1610235698238,1.0,40277.0,40274.0,0.00021679]
[1610235699640,1.0,40282.0,40274.0,0.00021679]
[1610235700443,1.0,40282.0,40274.0,0.57171679]
[1610235700644,1.0,40282.0,40274.0,0.00021679]
[1610235700844,1.0,40282.0,40275.0,0.0002171]
[1610235701444,1.0,40282.0,40281.0,0.13632608]
[1610235701645,1.0,40283.0,40281.0,0.13632608]
[1610235702047,1.0,40283.0,40282.0,0.0002171]
[1610235703649,1.13632608,40284.0,40282.0,0.0002171]
[1610235705652,1.00030509,40283.0,40282.0,0.0002171]
[1610235705852,1.00030509,40283.0,40276.0,0.00021712]
[1610235706052,1.00030509,40283.0,40282.0,0.00021712]
[1610235706452,1.0,40283.0,40277.0,0.00021712]
[1610235706652,1.0003051,40283.0,40282.0,0.00021712]
[1610235706852,1.0,40283.0,40278.0,0.00021712]
[1610235707254,1.00030511,40283.0,40282.0,0.00021712]
[1610235707453,1.00030511,40283.0,40258.0,0.00955412]
[1610235707454,1.0,40283.0,40279.0,0.00021714]
[1610235707653,0.00030513,40283.0,40282.0,0.00021714]
[1610235708052,0.13632608,40284.0,40280.0,0.00021714]
[1610235708252,0.00030513,40283.0,40282.0,0.00021714]
[1610235708452,0.00030513,40283.0,40281.0,0.00021714]
[1610235708852,0.00030513,40283.0,40282.0,0.00021714]
[1610235709252,0.00030513,40283.0,40272.0,0.00021714]
[1610235709454,0.1032,40285.0,40282.0,0.00021714]
[1610235709653,1.0,40283.0,40282.0,0.00021714]
[1610235709853,1.11057,40283.0,40278.0,0.00021714]
[1610235710054,1.11087512,40283.0,40282.0,0.00021714]
[1610235710256,1.11087512,40283.0,40277.0,0.13632608]
[1610235710257,1.11057,40283.0,40279.0,0.00021714]
[1610235710653,1.11057,40283.0,40278.0,0.00021714]
[1610235710854,1.11057,40283.0,40280.0,0.00021714]
[1610235711054,1.11057,40283.0,40279.0,0.00021714]
[1610235711454,0.13632608,40280.0,40278.0,0.00021714]
[1610235711656,0.13632608,40280.0,40277.0,0.13632608]
[1610235711858,0.13632608,40280.0,40279.0,0.00021713]
[1610235712256,0.13632608,40280.0,40278.0,0.00021713]
[1610235712660,1.0,40281.0,40279.0,0.00021711]
[1610235713158,1.0,40281.0,40278.0,0.00021711]
[1610235713558,0.11057,40283.0,40278.0,0.00021711]
[1610235714859,1.0,40290.0,40278.0,0.00021711]
[1610235715561,1.0,40290.0,40289.0,0.13632608]
[1610235716058,1.0,40290.0,40289.0,0.13654319]
[1610235716659,1.0,40290.0,40289.0,0.13654318]
[1610235717460,1.00030508,40290.0,40289.0,0.13654318]
[1610235717660,0.00030508,40290.0,40289.0,0.13654318]
[1610235717961,0.2876,40291.0,40289.0,0.13654318]
[1610235718162,0.00030507,40290.0,40289.0,0.13654318]
[1610235718561,0.2876,40291.0,40289.0,0.13654318]
[1610235718962,0.2876,40291.0,40290.0,0.0002171]
[1610235719260,0.28790508,40291.0,40290.0,0.0002171]
[1610235721064,0.2876,40291.0,40290.0,0.0002171]
[1610235721864,0.28790509,40291.0,40290.0,0.0002171]
[1610235722266,0.28790509,40291.0,40257.0,0.00977033]
[1610235722466,0.28790509,40291.0,40290.0,0.0002171]
[1610235722667,0.00030509,40290.0,40258.0,0.0002171]
[1610235723067,0.28790509,40291.0,40257.0,0.00955323]
[1610235723268,0.2876,40291.0,40259.0,0.00021711]
[1610235723466,0.13632608,40285.0,40284.0,0.13632608]
[1610235723866,0.23463608,40285.0,40284.0,0.13632608]
[1610235724067,0.23463608,40285.0,40284.0,0.13654319]
[1610235724470,0.09831,40285.0,40284.0,0.13654319]
[1610235727970,0.09831,40285.0,40284.0,0.13654318]
[1610235729072,1.0,40290.0,40284.0,0.13654318]
[1610235729671,0.2876,40291.0,40256.0,0.09616]
[1610235729672,0.2876,40291.0,40289.0,0.13632608]
[1610235730072,0.2876,40291.0,40290.0,0.0002171]
[1610235730472,0.13632608,40293.0,40290.0,0.0002171]
[1610235730674,0.00030507,40291.0,40290.0,0.0002171]
[1610235730874,0.00030507,40292.0,40290.0,0.0002171]
[1610235731676,1.0,40291.0,40290.0,0.0002171]
[1610235732277,1.00030507,40291.0,40290.0,0.0002171]
[1610235732677,1.0,40291.0,40290.0,0.0002171]
[1610235733681,1.0,40292.0,40290.0,0.0002171]
[1610235734581,0.00030507,40291.0,40290.0,0.0002171]
[1610235735480,0.03030507,40291.0,40273.0,0.00021713]
[1610235735683,0.03030507,40291.0,40222.0,1.5]
[1610235735684,0.16663115,40291.0,40274.0,0.13632608]
[1610235735882,0.00030516,40290.0,40274.0,0.13654324]
[1610235736284,0.00030516,40290.0,40275.0,0.00021716]
[1610235737686,0.13632608,40276.0,40275.0,0.00021716]
[1610235740086,0.11312,40278.0,40275.0,0.00021716]
[1610235740888,1.0,40284.0,40275.0,0.00976943]
[1610235741689,0.03,40291.0,40283.0,0.13632608]
[1610235742087,0.03,40291.0,40284.0,0.00021708]
[1610235743588,0.03,40291.0,40290.0,0.13632608]
[1610235744191,0.03,40291.0,40290.0,0.13654316]
[1610235744488,0.03,40291.0,40290.0,3.94254316]
[1610235747591,1.03,40291.0,40290.0,3.94254316]
[1610235749695,0.03,40291.0,40290.0,3.94254316]
[1610235751598,1.03,40291.0,40290.0,3.94254316]
[1610235758706,1.03,40291.0,40290.0,3.80621708]
[1610235758905,1.03030509,40291.0,40290.0,3.806]
[1610235759807,1.03030509,40291.0,40290.0,3.94232608]
[1610235760207,1.03030509,40291.0,40290.0,3.806]
[1610235762612,1.03030509,40291.0,40288.0,0.13632608]
[1610235763211,1.03,40291.0,40288.0,0.13632608]
[1610235763413,0.00030512,40290.0,40289.0,0.00022065]
[1610235763612,5.00030512,40290.0,40286.0,3.192]
[1610235763812,0.13632608,40287.0,40286.0,3.192]
[1610235764212,0.13663122,40287.0,40286.0,3.19222067]
[1610235765615,1.13663122,40287.0,40286.0,3.19222067]
[1610235765814,1.13663122,40287.0,40286.0,3.32854675]
[1610235766115,1.13663122,40287.0,40286.0,0.13654675]
[1610235770524,1.13663122,40287.0,40286.0,0.00022067]
[1610235771123,1.13663122,40287.0,40274.0,0.00022065]
[1610235771323,1.13663122,40287.0,40286.0,0.00022065]
[1610235771525,0.00030512,40286.0,40275.0,0.00022065]
[1610235771725,0.00030512,40286.0,40277.0,0.13632608]
[1610235772127,0.00030512,40290.0,40281.0,3.461]
[1610235772326,0.00030512,40285.0,40281.0,3.461]
[1610235772525,0.07589512,40285.0,40281.0,3.461]
[1610235772727,0.07559,40285.0,40282.0,0.00022065]
[1610235772925,0.00030512,40284.0,40282.0,0.00022065]
[1610235773528,0.07559,40285.0,40282.0,0.00022065]
[1610235773727,0.07559,40285.0,40284.0,0.13632608]
[1610235774329,0.07559,40285.0,40284.0,0.13654669]
[1610235774529,0.07559,40285.0,40284.0,2.97184669]
[1610235774729,0.07559,40285.0,40284.0,2.83552061]
[1610235775231,0.07589512,40285.0,40284.0,2.83552061]
[1610235775629,1.07589512,40285.0,40284.0,2.83552061]
[1610235775829,1.21191608,40285.0,40284.0,2.83552061]
[1610235776629,1.2122212,40285.0,40284.0,2.83552061]
[1610235776829,1.21191608,40285.0,40284.0,2.83552061]
[1610235777932,1.21222119,40285.0,40284.0,2.83552061]
[1610235778432,1.21191608,40285.0,40284.0,2.83552061]
[1610235778832,1.2122212,40285.0,40284.0,2.83552061]
[1610235780036,1.21191608,40285.0,40284.0,2.83552061]
[1610235780637,1.2122212,40285.0,40284.0,2.83552061]
[1610235780837,1.21191608,40285.0,40284.0,2.83552061]
[1610235781336,1.2122212,40285.0,40284.0,2.83552061]
[1610235782138,1.21191608,40285.0,40284.0,2.83552061]
[1610235782940,1.21222119,40285.0,40284.0,2.83552061]
[1610235784941,1.21222119,40285.0,40284.0,0.00022061]
[1610235785341,1.21222119,40285.0,40282.0,0.13632608]
[1610235785342,1.21222119,40285.0,40283.0,0.00022061]
[1610235785543,1.21222119,40285.0,40284.0,0.00022061]
[1610235785941,1.21222119,40285.0,40282.0,0.13632608]
[1610235785942,1.21222119,40285.0,40283.0,0.00022061]
[1610235786142,1.07589511,40285.0,40284.0,0.00022061]
[1610235786344,1.07559,40285.0,40284.0,0.00022061]
[1610235786743,1.07589511,40285.0,40283.0,0.00022061]
[1610235786944,1.07589511,40285.0,40282.0,0.13632608]
[1610235786945,1.07589511,40285.0,40284.0,0.00022061]
[1610235787144,1.07559,40285.0,40284.0,0.00022061]
[1610235787746,0.07559,40285.0,40284.0,0.00022061]
[1610235788148,1.03,40291.0,40284.0,0.00022061]
[1610235788546,0.00030509,40290.0,40283.0,0.00022059]
[1610235788747,0.00030509,40290.0,40285.0,0.00022059]
[1610235788948,0.00030509,40290.0,40284.0,0.00022059]
[1610235789249,0.00030509,40290.0,40283.0,0.01102213]
[1610235789650,0.00030509,40290.0,40285.0,0.00022059]
[1610235789850,1.03,40291.0,40289.0,0.13632608]
[1610235790348,1.03,40291.0,40290.0,0.00022059]
[1610235791549,0.03,40291.0,40290.0,0.00022059]
[1610235799965,0.16632608,40291.0,40290.0,0.00022059]
[1610235802869,0.03,40291.0,40290.0,0.00022059]
[1610235803771,0.03,40291.0,40290.0,3.57902059]
[1610235805573,0.03,40291.0,40290.0,4.57902059]
[1610235809475,0.03,40291.0,40290.0,4.58994096]
[1610235811478,0.0844,40303.0,40290.0,4.58994096]
[1610235811677,0.0844,40303.0,40290.0,9.58994096]
[1610235811877,0.0844,40303.0,40291.0,0.01113999]
[1610235812078,0.0844,40303.0,40302.0,0.13632608]
[1610235812680,1.0,40334.0,40302.0,0.1365469]
[1610235813079,1.0,40334.0,40303.0,0.00022079]
[1610235813279,1.0,40334.0,40303.0,0.07513079]
[1610235813679,0.00030493,40329.0,40304.0,0.00022079]
[1610235813883,0.08085493,40329.0,40304.0,0.00022079]
[1610235814081,0.08085493,40329.0,40326.0,0.13632608]
[1610235814483,0.08055,40329.0,40326.0,0.13632608]
[1610235815681,1.0,40327.0,40326.0,0.13632608]
[1610235816082,1.13632608,40327.0,40326.0,0.13632608]
[1610235821488,1.13632608,40327.0,40302.0,1.0]
[1610235821687,0.13632608,40327.0,40294.0,0.08144]
[1610235821885,0.13632608,40327.0,40303.0,0.0002208]
[1610235822087,0.08055,40329.0,40311.0,0.13632608]
[1610235822285,0.2956,40326.0,40311.0,0.13632608]
[1610235822486,0.39024,40326.0,40311.0,0.13632608]
[1610235822686,0.00030496,40325.0,40311.0,0.13632608]
[1610235823086,0.00030496,40325.0,40282.0,0.0948]
[1610235823286,0.00030496,40325.0,40274.0,0.2923]
[1610235823488,0.00030496,40325.0,40283.0,0.00022084]
[1610235823687,1.0,40300.0,40280.0,1.0]
[1610235823888,1.10271,40300.0,40284.0,0.00022084]
[1610235824090,1.10271,40300.0,40299.0,0.13632608]
[1610235825588,0.10271,40300.0,40299.0,0.13632608]
[1610235825788,0.10271,40300.0,40299.0,0.13654692]
[1610235828890,0.13632608,40310.0,40299.0,0.13654692]
[1610235829292,0.13632608,40310.0,40300.0,0.00022082]
[1610235830093,0.13632608,40310.0,40309.0,0.13632608]
[1610235834394,0.13632608,40310.0,40309.0,0.13654689]